Cogmind - Beta 12 @@@ ROGUE MODE // 2023.10.24 @ 18:06:07 Player: Figgis Result: Destroyed by D-53 Grenadier with Mini Grenade Launcher Performance ------------- Evolutions (0) 0 Regions Visited (2) 400 Robots Destroyed (12) 60 Value Destroyed (312) 312 Prototype IDs (0) 0 Alien Tech Used (0) 0 Bonus (0) 0 TOTAL SCORE: 772 Bonus ------- None Cogmind --------- Core Integrity 0/250 Matter 300/300 Energy 250/250 System Corruption 0% Temperature Cool (0) Movement Treading (320) Ox2 Location -10/Mines Parts ------- > --- POWER (1) -------- Ion Engine > --- PROPULSION (2) --- Light Treads Light Treads > --- UTILITY (2) ------ Improved Heat Sink Huge Storage Unit > --- WEAPON (2) ------- Light Assault Rifle > --- INVENTORY (25) --- Ion Engine Light Ion Engine Light Treads Light Treads Light Treads Light Treads Light Treads Aluminum Leg Aluminum Leg Power Shielding Power Shielding Power Shielding Medium Laser Light Assault Rifle Peak State ------------ > --- POWER ------------ Ion Engine > --- PROPULSION ------- Light Treads Light Treads > --- UTILITY ---------- Improved Heat Sink Huge Storage Unit > --- WEAPON ----------- Assault Rifle Light Assault Rifle > --- INVENTORY -------- Ion Engine Light Ion Engine Light Treads Light Treads Aluminum Leg Aluminum Leg Power Shielding Power Shielding Power Shielding Medium Laser [Rating: 10] Favorites ----------- Power Ion Engine Engine Ion Engine Propulsion Light Treads Treads Light Treads Utility Improved Heat Sink Device Improved Heat Sink Storage Huge Storage Unit Weapon Light Assault Rifle Ballistic Gun Light Assault Rifle Build | -11 -10 -10 ------- Run | Jun Mat Min Slots Evolved . | . . . Power . | . . . Propulsion . | . . . Utility . | . . . Weapon . | . . . Parts Attached 12 | 4 8 . Power 3 | . 3 . Engine 3 | . 3 . Core . | . . . Reactor . | . . . Propulsion 3 | 2 1 . Treads 3 | 2 1 . Leg . | . . . Wheel . | . . . Hover . | . . . Flight . | . . . Utility 4 | 1 3 . Device 1 | . 1 . Storage 3 | 1 2 . Processor . | . . . Hackware . | . . . Protection . | . . . Artifact . | . . . Weapon 2 | 1 1 . Energy Gun . | . . . Energy Cannon . | . . . Ballistic Gun 2 | 1 1 . Ballistic Cannon . | . . . Launcher . | . . . Special Weapon . | . . . Impact Weapon . | . . . Slashing Weapon . | . . . Piercing Weapon . | . . . Special Melee Weapon . | . . . Unidentified Prototypes . | . . . Parts Lost 3 | . 2 1 Power 1 | . 1 . Propulsion 1 | . 1 . Utility . | . . . Weapon 1 | . . 1 Highest Loss Streak 2 | . 2 1 To Critical Strikes . | . . . Average Slot Usage (%) 97 | . 97 100 Engine 13 | . 13 14 Treads 28 | . 28 28 Device 12 | . 11 14 Storage 14 | . 14 14 Ballistic Gun 28 | . 28 28 Naked Turns . | . . . Heaviest Build 89 | 1 89 89 Greatest Support 40 | 3 40 40 Greatest Overweight (x) 2 | . 2 2 Average Overweight (x) 1 | . 1 2 Largest Inventory Capacity 25 | 8 25 25 Average Capacity 21 | 5 21 25 Most Carried 14 | 5 13 14 Average Carried 9 | 3 8 13 Final Capacity 25 | 5 25 25 Final Carried 14 | 5 13 14 Class Distribution -------------------- 100% | Mutant Dominant Class ---------------- Mutant | -10/Materials Mutant | -10/Mines Resources | -11 -10 -10 ----------- Run | Jun Mat Min Matter Collected 498 | 240 246 12 Remotely . | . . . Salvage Created 437 | . 395 42 Parts 32 | . 26 6 Haulers Intercepted 1 | . 1 . Recyclers Shooed . | . . . Parts Field Recycled . | . . . Retrieved Matter . | . . . Parts Self-Destructed . | . . . Prevented . | . . . Kills | -11 -10 -10 ------- Run | Jun Mat Min Combat Hostiles Destroyed 10 | . 7 3 Guns 10 | . 7 3 Classes Destroyed 4 | . 3 1 Hauler 1 | . 1 . Watcher 1 | . 1 . Swarmer 3 | . . 3 Grunt 7 | . 7 . Best Kill Streak 4 | . 4 3 Combat Bots Only 3 | . 2 3 Max Kills in Single Turn 2 | . 1 2 Gunslinging 1 | . . 1 Exploded . | . . . Melee . | . . . Uniques/NPCs Destroyed . | . . . Combat | -11 -10 -10 -------- Run | Jun Mat Min Damage Taken 920 | . 689 231 Core 262 | . 170 92 Absorbed by Shields . | . . . Core Remaining (%) 100 | 100 . . Volleys Fired 47 | . 44 3 Largest 2 | . 2 2 Hottest 40 | . 40 40 Shots Fired 94 | . 88 6 Gun 94 | . 88 6 Cannon . | . . . Launcher . | . . . Special . | . . . Kinetic 94 | . 88 6 Thermal . | . . . Explosive . | . . . Electromagnetic . | . . . Robot Hit Streak 9 | . 9 3 Robot Miss Streak 3 | . 3 2 Penetration Max . | . . . Secondary Targets 3 | . 2 1 Max Gunslinging Chain 1 | . 1 1 Shots Hit Robots 68 | . 65 3 Core Hits 24 | . 21 3 Critical Kills . | . . . Critical Parts Destroyed 1 | . 1 . Critical Strikes 1 | . 1 . Destroy 1 | . 1 . Melee Attacks . | . . . Impact . | . . . Slashing . | . . . Piercing . | . . . Sneak Attacks . | . . . Combat Hostiles . | . . . Follow-up Attacks . | . . . Damage Inflicted 718 | . 688 30 Guns 718 | . 688 30 Cannons . | . . . Explosions . | . . . Melee . | . . . Ramming . | . . . Kinetic 718 | . 688 30 Thermal . | . . . Explosive . | . . . Electromagnetic . | . . . Impact . | . . . Slashing . | . . . Piercing . | . . . Highest Corruption . | . . . Average Corruption . | . . . Corruption Purged . | . . . Corruption Blocked . | . . . Overload Shots . | . . . Overflow Damage . | . . . Projectiles . | . . . Explosions . | . . . Melee . | . . . Knockbacks . | . . . Impact . | . . . Kinetic . | . . . Secondary . | . . . Self-Inflicted Damage . | . . . Shots . | . . . Rammed . | . . . Targets Rammed . | . . . Kicked . | . . . Crushed . | . . . Highest Temperature 31 | . 31 . Average Temperature 11 | . 11 . Received Heat Transfer 375 | . 375 . Siege Activations . | . . . Robots Corrupted . | . . . Combat Hostiles . | . . . Parts Fried . | . . . Impact Corruptions . | . . . Robots Melted . | . . . Combat Hostiles . | . . . Parts Melted . | . . . Heat Transferred . | . . . Parts Sabotaged . | . . . Parts Stolen . | . . . Parts Stripped . | . . . Power Chain Reactions . | . . . Missiles Intercepted . | . . . Alert | -11 -10 -10 ------- Run | Jun Mat Min Peak Influence 190 | . 190 92 Initial 7 | . . 7 Average 50 | . 44 73 Maximum Alert Level . | . . . Low Security (%) 100 | 100 100 100 Level 1 . | . . . Level 2 . | . . . Level 3 . | . . . Level 4 . | . . . Level 5 . | . . . High Security . | . . . Max Security . | . . . Squads Dispatched 2 | . 2 . Investigation . | . . . Extermination . | . . . Reinforcement 2 | . 2 . Assault . | . . . Garrison . | . . . Intercept . | . . . Searches Triggered . | . . . Construction Impeded . | . . . Haulers Reinforced . | . . . Active Scanning Responses . | . . . Cargo Convoy Interrupts . | . . . Stealth | -11 -10 -10 --------- Run | Jun Mat Min Distress Signals 1 | . 1 . Communications Jammed . | . . . Distress Signals . | . . . Times Spotted 17 | . 10 7 Peak Tracking Total 3 | . 3 3 Tactical Retreats . | . . . Traps | -11 -10 -10 ------- Run | Jun Mat Min Traps Triggered . | . . . Indirectly . | . . . Trap Hack Attempts . | . . . Triggered . | . . . Disarmed . | . . . Reprogrammed . | . . . Reused . | . . . Traps Extracted . | . . . Installed . | . . . Triggered . | . . . Machines | -11 -10 -10 ---------- Run | Jun Mat Min Machines Disabled . | . . . Max in Single Turn . | . . . Machines Repaired . | . . . Machines Sabotaged . | . . . Overloaded Fab Kills . | . . . Hacking | -11 -10 -10 --------- Run | Jun Mat Min Machines Accessed 2 | . 2 . Terminals 2 | . 2 . Fabricators . | . . . Repair Stations . | . . . Recycling Units . | . . . Scanalyzers . | . . . Garrison Access . | . . . Total Hacks 4 | . 4 . Successful 1 | . 1 . Failed 3 | . 3 . Catastrophic . | . . . Database Lockouts . | . . . Manual . | . . . Terminals 4 | . 4 . Fabricators . | . . . Repair Stations . | . . . Recycling Units . | . . . Scanalyzers . | . . . Garrison Access . | . . . Terminal Hacks 1 | . 1 . Robot Analysis 1 | . 1 . Fabricator Hacks . | . . . Repair Station Hacks . | . . . Recycling Unit Hacks . | . . . Scanalyzer . | . . . Garrison Access Hacks . | . . . Unauthorized Hacks . | . . . Terminals . | . . . Fabricators . | . . . Repair Stations . | . . . Recycling Units . | . . . Scanalyzers . | . . . Garrison Access . | . . . Data Cores Recovered . | . . . Used . | . . . Hacking Detections 2 | . 2 . Full Trace Events . | . . . Feedback Events . | . . . Feedback Blocked . | . . . Robot Schematics Acquired . | . . . Robots Built . | . . . Authchips . | . . . Time . | . . . Total Robot Build Rating . | . . . Part Schematics Acquired . | . . . Parts Built . | . . . Authchips . | . . . Time . | . . . Total Part Build Rating . | . . . Parts Repaired . | . . . Time . | . . . Parts Recycled . | . . . Recycled Matter . | . . . Retrieved Matter . | . . . Retrieved Components . | . . . Parts Scanalyzed . | . . . Part Schematics Acquired . | . . . Parts Damaged . | . . . Bothacking | -11 -10 -10 ------------ Run | Jun Mat Min Used RIF Installer . | . . . Robots Hacked . | . . . Non-combat . | . . . Combat . | . . . Robot Hacks Applied . | . . . Relay Couplers Released . | . . . Fabnet Peak Effective % . | . . . Robots Rewired . | . . . Allies Hacked . | . . . Hacks Repelled . | . . . Allies | -11 -10 -10 -------- Run | Jun Mat Min Total Allies . | . . . Largest Group . | . . . Highest-Rated Group . | . . . Highest-Rated Ally . | . . . Total Orders . | . . . Ally Attacks . | . . . Total Damage . | . . . Kills . | . . . Allies Corrupted . | . . . Allies Melted . | . . . Intel | -11 -10 -10 ------- Run | Jun Mat Min Robot Analysis Total 1 | . 1 . Derelict Logs Recovered . | . . . Drone Launches . | . . . Drone Recoveries . | . . . Exploration | -11 -10 -10 ------------- Run | Jun Mat Min Turns Passed 1496 | 32 1108 356 Spaces Moved 493 | 40 351 102 Core 44 | 40 4 . Treads 449 | . 347 102 Legs . | . . . Wheels . | . . . Hover . | . . . Flight . | . . . Fastest Speed 50 | 50 50 320 Average Speed 265 | 50 274 320 Slowest Speed 320 | 50 320 320 Overloaded Moves . | . . . Propulsion Burnouts . | . . . Robots Hopped . | . . . Cave-ins Triggered . | . . . Exploration Rate (%) 36 | 4 74 31 Regions Visited 2 Branch Regions 1 Pre-discovered Areas 1 | . . 1 Known Exits Taken . | . . . Unknown Exits Taken 2 | 1 1 . Scrap Searched . | . . . Spaces Dug . | . . . Terrain Destroyed . | . . . Melee . | . . . Projectile . | . . . AOE . | . . . Terrain Rammed . | . . . Walls Destroyed . | . . . Machines Disabled . | . . . Actions | -11 -10 -10 --------- Run | Jun Mat Min Total 598 | 51 420 127 Wait 23 | . 2 21 Move 491 | 39 350 102 Hop . | . . . Pick Up 22 | 7 14 1 Fast Attach 2 | 1 1 . Attach 8 | 3 5 . Detach 1 | 1 . . Swap 2 | . 2 . Drop 2 | . 2 . Fire 47 | . 44 3 Melee . | . . . Ram . | . . . Kick . | . . . Crush . | . . . Escape Stasis . | . . . Rewire . | . . . Trap . | . . . Miscellaneous . | . . . Route ------- -11/Junkyard -10/Materials (discovered 3 exits: [*Mat x2] / [*Min]) -10/Mines (discovered 1 exit: [*Mat]) History --------- Turn | Location | Event 6 | -11/Junkyard | Discovered new exit (range 15) 33 | -11/Junkyard | Entered Materials 292 | -10/Materials | Discovered new exit (range 16) 315 | -10/Materials | Build established: Mutant 319 | -10/Materials | Core integrity fell below 50% 512 | -10/Materials | Discovered new exit (range 13) 644 | -10/Materials | Discovered new exit (range 8) 1141 | -10/Materials | Entered Mines 1142 | -10/Mines | Learned location of Storage (-8) 1164 | -10/Mines | Met a Derelict bent on vengeance 1199 | -10/Mines | Discovered new exit (range 11) 1461 | -10/Mines | Assembled infested the area 1496 | -10/Mines | Core integrity fell below 20% 1497 | -10/Mines | Destroyed by D-53 Grenadier with Mini Grenade Launcher Last Messages --------------- 01173_ K-01 Serf cleans the Laser Drill. 01174_ R-06 Scavenger collects Lgt. Assault Rifle. 01177_ R-06 Scavenger collects Flight Unit. 01179_ Acquired Lgt. Assault Rifle. 01179_ K-01 Serf collects debris. 01180_ Acquired 12 matter. 01181_ R-06 Scavenger collects Flight Unit. 01182_ K-01 Serf collects debris. 01185_ K-01 Serf cleans the Laser Drill. 01189_ K-01 Serf collects debris. 01199_ K-01 Serf cleans the Laser Drill. 01199_ EXIT=FOUND 01202_ K-01 Serf cleans the Laser Drill. 01257_ K-01 Serf collects debris. 01461_ ALERT: Infestation in the mines, dispatching Demolisher response squad. 01489_ K-01 Serf destroyed. 01495_ C-30 ARC bursts open, deploying its payload. 01495_ D-53 Grenadier unfolds itself. 01497_ Assault Rifle destroyed. Map ----- +----------------------------------------------------+ | ??????????????????????????????????????? | | ??????????????????????????????????????? | | ??????????? ??????????????????????????? | | ?????????? ??????????????????????????? | | ??????????# ??????????????????????????? | | ??????????# ?????????????????????????? | | ??????????# ???????? ????????????????? | | ??????????# ???????? #???????????????? | | ??????????# #??????? #???????????????? | | ??????????# #????? #???????????????? | | ??????????# ##??? #???????????????? | | ??????????# #??? #??##???????????? | | ??????????# ##?#%*## #???????????? | | ???????????# ##a #???????????? | | ???????????# [= ????????????? | | ???????????# =%=""" #????????????? | | ????????????# !a!""" #????????????? | | ????????????### """ #????????????? | | ??????????????## #?????????????? | | ???????????????# ##?????????????? | | ???????????##### ######??????????????? | | ??????????## #??????????????????? | | ?????????## #??????????????????? | | ?????????# #??????????????????? | | ?????????## dd #??????????????????? | | ?????????# @ #??????????????????? | | ?????????## ##??????????????????? | | ?????????# #???????????????????? | | ?????????## ##???????????????????? | | ??????????# ######????????????????????? | | ??????????# #?????????????????????????? | | ??????????# #?????????????????????????? | | ??????????# #?????????????????????????? | | ??????????# #?????????????????????????? | | ??????????# #?????????????????????????? | | ??????????# #?????????????????????????? | | ??????????# #?????????????????????????? | | ??????????# #?????????????????????????? | | ??????????# #?????????????????????????? | | ??????????# #?????????????????????????? | | ??????????# #?????????????????????????? | | ??????????# #?????????????????????????? | | ??????????# #???????????????########### | | ?????????## ###?#####???????# | | ????????## ### ##??????# | | ??####?## #??????# """ " | | ??# ### #??????# """ " | | ?# ##??????# < """ " | | ?# ########### | | ?# | +----------------------------------------------------+ Best States ------------- Heat Dissipation 39 Energy Generation 10 Energy Capacity 250 Matter Stores 300 Matter Capacity 300 Sight Range 16 Terrain Scan Density 10 Evasion (%) 50 Recoil Reduction 2 Item Schematics ----------------- None Robot Schematics ------------------ None Fabricated ------------ Nothing Alien Tech Used ----------------- None Achievements -------------- None Challenges ------------ None Game ------ Seed FlakWeldingScreen Manual? 0 Play Time 00:06:10 Cumulative 86.5 hours Start 2023.10.24 @ 17:59:54 End 2023.10.24 @ 18:06:07 Sessions 1 Manual Loads 0 Difficulty Rogue Special Mode None Game No. 146 Rogue 143 Adventurer 3 Explorer 0 Win Type - Total 0 Types 0/0/0/0/0/0/0/0/0 Lore% 35 Gallery% 53 Achievement% 38 Wizard Run 0 Options --------- ASCII 0 Keyboard 0 Movement Mouse Keybinds 0 Fullscreen 2 Font 18/SmallcapsGlow Map View 76x50 Tactical HUD 1 Map Filters NONE Filters NONE Steam 1 RUN: 12797343-ca1f-4206-912b-9d5236db0c07